bitfinex/quotes_SOLUSD_20250712
["timestamp","ask_amount","ask_price","bid_price","bid_amount"]
[1752302072231,0.2,162.8,162.79,145.84901885]
[1752302072497,0.2,162.8,162.79,153.13644845]
[1752302072815,0.03,162.81,162.8,16.78468397]
[1752302073095,0.03,162.81,162.8,34.69335373]
[1752302073474,0.03,162.81,162.8,131.50360282]
[1752302073876,0.03,162.81,162.8,138.79103242]
[1752302077588,0.03,162.82,162.8,138.79103242]
[1752302077794,0.03,162.82,162.81,71.74669754]
[1752302077983,0.03,162.82,162.81,160.84669754]
[1752302080586,0.03,162.82,162.81,179.24669754]
[1752302080899,0.03,162.84,162.83,16.78468397]
[1752302081093,0.03,162.84,162.83,63.95644845]
[1752302081286,0.03,162.84,162.83,64.01644845]
[1752302081613,0.2,162.86,162.84,113.14211357]
[1752302081798,0.2,162.86,162.84,122.06644845]
[1752302081987,0.2,162.86,162.84,122.12644845]
[1752302082699,0.2,162.86,162.84,122.06644845]
[1752302082901,0.2,162.86,162.84,145.73901885]
[1752302083294,0.2,162.86,162.84,145.79901885]
[1752302083603,0.2,162.86,162.84,157.88426744]
[1752302083815,0.2,162.86,162.84,157.82426744]
[1752302085493,0.88,162.85,162.84,153.02644845]
[1752302085693,0.88,162.85,162.84,145.73901885]
[1752302088715,0.2,162.85,162.84,145.73901885]
[1752302097620,0.88,162.85,162.84,145.73901885]
[1752302098506,0.2,162.85,162.84,145.73901885]
[1752302102028,0.2,162.85,162.84,153.50926794]
[1752302102328,0.2,162.85,162.84,153.44926794]
[1752302102528,0.88,162.85,162.84,105.85468397]
[1752302102827,0.2,162.85,162.84,145.79901885]
[1752302103512,0.88,162.85,162.84,136.87468397]
[1752302103825,0.88,162.85,162.84,145.79901885]
[1752302104132,0.2,162.85,162.84,145.79901885]
[1752302105124,0.2,162.85,162.84,136.87468397]
[1752302105326,0.88,162.85,162.84,145.79901885]
[1752302105831,0.2,162.85,162.84,145.79901885]
[1752302106406,0.88,162.85,162.84,145.79901885]
[1752302107148,0.88,162.85,162.84,114.83901885]
[1752302107632,0.88,162.85,162.84,145.81901885]
[1752302108322,0.88,162.85,162.84,136.89468397]
[1752302108523,0.88,162.85,162.84,47.82468397]
[1752302108712,0.88,162.85,162.84,56.74901885]
[1752302109221,0.88,162.85,162.84,82.74901885]
[1752302111522,0.2,162.85,162.84,56.74901885]
[1752302111719,0.2,162.85,162.84,145.81901885]
[1752302112119,0.88,162.85,162.84,145.81901885]
[1752302112314,0.88,162.85,162.84,155.03433488]
[1752302117529,0.88,162.85,162.84,65.96433488]
[1752302118142,0.2,162.85,162.84,65.96433488]
[1752302118321,0.9,162.85,162.84,65.96433488]
[1752302119027,0.9,162.85,162.84,39.96433488]
[1752302121443,0.2,162.85,162.84,39.96433488]
[1752302121649,0.9,162.85,162.84,39.96433488]
[1752302123515,0.9,162.85,162.84,129.03433488]
[1752302126343,0.9,162.85,162.84,129.01433488]
[1752302127024,0.9,162.85,162.84,98.05433488]
[1752302127321,0.9,162.85,162.84,129.01433488]
[1752302129332,0.9,162.85,162.84,98.05433488]
[1752302129636,0.9,162.85,162.84,129.01433488]
[1752302130448,0.2,162.85,162.84,129.01433488]
[1752302131149,0.9,162.85,162.84,129.01433488]
[1752302131749,0.2,162.85,162.84,129.01433488]
[1752302131930,0.2,162.85,162.84,145.79901885]
[1752302136644,0.2,162.85,162.84,136.93468397]
[1752302136946,0.2,162.85,162.84,145.79901885]
[1752302137153,0.2,162.85,162.84,145.85901885]
[1752302138759,0.2,162.85,162.84,145.79901885]
[1752302141256,0.2,162.85,162.84,145.85901885]
[1752302141563,0.2,162.85,162.84,153.56926794]
[1752302142161,0.2,162.85,162.84,160.85669754]
[1752302142357,0.2,162.85,162.84,179.24669754]
[1752302142555,0.2,162.86,162.85,16.78468397]
[1752302142857,0.2,162.86,162.85,160.79669754]
[1752302144139,0.2,162.87,162.85,160.79669754]
[1752302144343,0.2,162.87,162.86,56.72901885]
[1752302144566,0.2,162.87,162.86,64.01644845]
[1752302145962,0.2,162.87,162.86,63.95644845]
[1752302147248,0.2,162.87,162.86,153.08644845]
[1752302147449,0.2,162.87,162.86,153.02644845]
[1752302148359,0.2,162.87,162.86,153.08644845]
[1752302150051,0.2,162.87,162.86,153.02644845]
[1752302151750,0.2,162.87,162.86,153.08644845]
[1752302153147,0.2,162.87,162.86,153.02644845]
[1752302153671,0.2,162.87,162.86,153.08644845]
[1752302153866,0.2,162.87,162.86,160.79669754]
[1752302154861,0.2,162.87,162.86,160.73669754]
[1752302155377,0.2,162.87,162.86,160.71669754]
[1752302155774,0.85,162.87,162.86,120.85236266]
[1752302155964,0.85,162.87,162.86,160.71669754]
[1752302157369,0.2,162.87,162.86,160.71669754]
[1752302157774,0.85,162.87,162.86,160.71669754]
[1752302157976,0.85,162.87,162.86,129.77669754]
[1752302158472,0.85,162.87,162.86,160.71669754]
[1752302158678,0.85,162.87,162.86,153.00644845]
[1752302163287,0.2,162.87,162.86,153.00644845]
[1752302163493,0.2,162.87,162.86,160.71669754]
[1752302165491,0.2,162.87,162.86,160.77669754]
[1752302167885,0.2,162.87,162.86,160.83669754]
[1752302169369,0.2,162.88,162.87,31.78236266]
[1752302169687,0.2,162.88,162.87,71.64669754]
[1752302170886,0.2,162.88,162.87,160.71669754]
[1752302172594,0.85,162.88,162.87,120.85236266]
[1752302172797,0.2,162.88,162.87,160.71669754]
[1752302177494,0.9,162.88,162.87,160.71669754]
[1752302178270,0.9,162.88,162.87,129.77669754]
[1752302178468,0.9,162.88,162.87,160.71669754]
[1752302178676,0.2,162.88,162.87,160.71669754]
[1752302180301,0.2,162.88,162.87,129.77669754]
[1752302180603,0.2,162.88,162.87,160.71669754]
[1752302181684,0.2,162.88,162.87,129.77669754]
[1752302181994,0.2,162.88,162.87,160.71669754]
[1752302183101,0.2,162.88,162.87,129.77669754]
[1752302183293,0.2,162.88,162.87,160.71669754]
[1752302183693,0.9,162.88,162.87,160.71669754]
[1752302184380,0.2,162.88,162.87,160.71669754]
[1752302189707,0.2,162.88,162.87,160.77669754]
[1752302193798,0.2,162.88,162.87,160.83669754]
[1752302193986,0.2,162.88,162.87,160.77669754]
[1752302197509,0.2,162.88,162.87,160.83669754]
[1752302197912,0.9,162.91,162.9,25.70901885]
[1752302198112,0.9,162.91,162.9,145.51901885]
[1752302198607,0.2,162.91,162.9,145.51901885]
[1752302198799,0.2,162.91,162.9,154.44335373]
[1752302200307,0.9,162.91,162.9,145.51901885]
[1752302201308,0.9,162.91,162.9,148.57049385]
[1752302203418,0.9,162.91,162.9,157.49482873]
[1752302203419,0.2,162.91,162.9,157.49482873]
[1752302203721,0.2,162.91,162.9,164.78225833]
[1752302206123,0.2,162.91,162.9,172.49250742]
[1752302207345,0.92,162.91,162.9,163.56817254]
[1752302207521,0.2,162.91,162.9,172.49250742]
[1752302207697,0.92,162.91,162.9,123.70383766]
[1752302207902,0.2,162.91,162.9,172.49250742]
[1752302210129,0.92,162.91,162.9,172.49250742]
[1752302210730,0.92,162.91,162.9,163.56817254]
[1752302215829,0.2,162.91,162.9,172.49250742]
[1752302216234,0.92,162.91,162.9,172.49250742]
[1752302217132,0.2,162.91,162.9,172.49250742]
[1752302220011,7.7722,162.98,162.97,16.78468397]
[1752302220237,7.7722,162.98,162.97,56.64901885]
[1752302220640,8.4922,162.98,162.97,56.64901885]
[1752302223742,8.4922,162.98,162.97,25.28]
[1752302224935,8.4922,162.98,162.97,56.22]
[1752302232955,8.5222,162.98,162.97,56.22]
[1752302244243,0.75,162.98,162.97,65.14433488]
[1752302248462,0.03,162.98,162.97,65.14433488]
[1752302248762,0.7,162.98,162.97,65.14433488]
[1752302251153,0.7,162.98,162.97,56.22]
[1752302251547,0.7,162.98,162.97,65.14433488]
[1752302255145,0.7,162.98,162.97,56.2]
[1752302255970,0.7,162.98,162.97,56.26]
[1752302257167,9.62433488,162.98,162.97,30.98]
[1752302257954,11.22403488,162.98,162.97,30.98]
[1752302258361,2.2997,162.98,162.97,30.98]
[1752302258569,11.22403488,162.98,162.97,30.98]
[1752302260471,17.26023488,162.98,162.97,0.06]
[1752302260652,7.6587,162.97,162.91,0.06]
[1752302260853,8.92433488,162.92,162.91,0.06]
[1752302261057,0.67,162.96,162.92,30.92]
[1752302261259,0.67,162.96,162.92,39.84433488]
[1752302261862,0.67,162.96,162.92,30.92]
[1752302262065,0.67,162.96,162.92,39.84433488]
[1752302262763,0.67,162.96,162.94,8.92433488]
[1752302263084,0.67,162.96,162.95,30.92]
[1752302267786,0.67,162.96,162.95,39.84433488]
[1752302268083,0.71,162.98,162.95,39.84433488]
[1752302268386,0.71,162.98,162.96,8.92433488]
[1752302268577,0.03,162.98,162.97,30.94]
[1752302268978,0.71,162.98,162.97,30.94]
[1752302269679,0.71,162.98,162.97,39.86433488]
[1752302270680,0.03,162.98,162.97,39.86433488]
[1752302274490,0.03,162.98,162.97,82.64901885]
[1752302277885,0.71,162.98,162.97,82.64901885]
[1752302278590,0.03,162.98,162.97,82.64901885]
[1752302278789,0.71,162.98,162.97,82.64901885]
[1752302280478,0.03,162.98,162.97,82.64901885]
[1752302280894,0.71,162.98,162.97,82.64901885]
[1752302282191,0.03,162.98,162.97,82.64901885]
[1752302282437,0.03,162.98,162.97,83.30901885]
[1752302284376,0.03,162.98,162.97,57.30901885]
[1752302285398,0.03,162.98,162.97,56.64901885]
[1752302285602,0.03,162.98,162.97,57.30901885]
[1752302286316,0.03,162.98,162.97,145.77901885]
[1752302287887,0.71,162.98,162.97,105.25468397]
[1752302288089,0.71,162.98,162.97,119.39]
[1752302292116,0.71,162.98,162.97,30.92]
[1752302300019,0.71,162.98,162.97,30.98]
[1752302309220,0.03,162.98,162.97,39.90433488]
[1752302311128,0.03,162.98,162.97,56.68901885]
[1752302311425,0.03,162.98,162.97,57.40901885]
[1752302315098,0.03,162.98,162.97,48.48468397]
[1752302315322,0.03,162.98,162.97,57.40901885]
[1752302321123,0.03,162.98,162.97,47.76468397]
[1752302321335,0.03,162.98,162.97,56.68901885]
[1752302323543,0.03,162.98,162.97,57.40901885]
[1752302330325,0.03,162.98,162.97,56.68901885]
[1752302334944,0.03,162.98,162.97,57.35901885]
[1752302340450,0.71,162.98,162.97,25.76901885]
[1752302340632,0.71,162.98,162.97,56.68901885]
[1752302341733,0.03,162.98,162.97,56.68901885]
[1752302344935,0.03,162.98,162.97,57.35901885]
[1752302346365,0.03,162.98,162.97,160.82628005]
[1752302347155,0.03,162.98,162.97,179.21628005]
[1752302347334,0.03,162.98,162.97,160.82628005]
[1752302348862,0.03,162.98,162.97,129.90628005]
[1752302349068,0.03,162.98,162.97,160.80628005]
[1752302349650,0.2,163.02,163.01,42.78468397]
[1752302349933,0.2,163.02,163.01,171.07901885]
[1752302350140,0.2,163.02,163.01,171.74901885]
[1752302350470,0.2,163.02,163.01,171.07901885]
[1752302353568,0.2,163.02,163.01,171.74901885]
[1752302356953,0.2,163.02,163.01,171.07901885]
[1752302359270,0.91,163.02,163.01,131.25468397]
[1752302359474,0.91,163.02,163.01,171.07901885]
[1752302360170,0.91,163.02,163.01,82.60901885]
[1752302360969,0.91,163.02,163.01,73.68468397]
[1752302361171,0.91,163.02,163.01,82.60901885]
[1752302361376,0.2,163.02,163.01,82.60901885]
[1752302361678,0.2,163.02,163.01,83.30901885]
[1752302363650,0.2,163.02,163.01,82.60901885]
[1752302366047,0.2,163.02,163.01,171.07901885]
[1752302366470,0.2,163.02,163.01,171.77901885]
[1752302370261,0.2,163.02,163.01,195.70061493]
[1752302376183,0.2,163.02,163.01,186.77628005]
[1752302378886,0.2,163.02,163.01,195.70061493]
[1752302380173,0.2,163.02,163.01,164.80061493]
[1752302380374,0.2,163.02,163.01,195.70061493]
[1752302381884,0.91,163.02,163.01,105.25468397]
[1752302382090,0.91,163.02,163.01,30.9]
[1752302383187,9.83433488,163.02,163.01,30.9]
[1752302383688,9.83433488,163.02,162.97,0.06]
[1752302383893,9.63433488,163.01,162.97,0.06]
[1752302384192,9.63433488,163.01,162.99,26.0]
[1752302384368,0.68,163.0,162.99,26.0]
[1752302384993,0.68,163.0,162.99,56.9]
[1752302388394,0.68,163.0,162.99,65.82433488]
[1752302390494,0.68,163.0,162.99,56.9]
[1752302393216,0.68,163.0,162.99,65.82433488]
[1752302395180,0.2,163.02,162.99,65.82433488]
[1752302395378,0.68,163.01,163.0,8.92433488]
[1752302402101,0.68,163.01,163.0,25.70901885]
[1752302403007,0.2,163.02,163.0,25.70901885]
[1752302403008,0.88,163.02,163.0,25.70901885]
[1752302403214,0.88,163.02,163.01,39.82433488]
[1752302404082,0.88,163.02,163.01,56.60901885]
[1752302404305,0.2,163.02,163.01,57.31901885]
[1752302405311,0.2,163.02,163.01,66.24335373]
[1752302405497,0.2,163.02,163.01,154.71335373]
[1752302406819,0.2,163.02,163.01,66.24335373]
[1752302407395,0.2,163.02,163.01,81.24061493]
[1752302407817,0.2,163.04,163.03,42.78468397]
[1752302407997,0.2,163.04,163.03,90.31926794]
[1752302408317,0.2,163.04,163.03,91.02926794]
[1752302408689,0.2,163.04,163.03,99.87108005]
[1752302409992,0.2,163.04,163.03,98.31628005]
[1752302410913,0.68,163.1,163.08,16.78468397]
[1752302411105,16.86323488,163.16,163.09,39.82433488]
[1752302411414,16.86323488,163.16,163.12,8.92433488]
[1752302411614,16.86323488,163.16,163.13,30.9]
[1752302411817,0.68,163.15,163.13,30.9]
[1752302412515,0.68,163.15,163.14,8.92433488]
[1752302412718,7.9389,163.16,163.14,8.92433488]
[1752302412906,7.9389,163.16,163.15,39.84433488]
[1752302413104,8.6189,163.16,163.15,39.84433488]
[1752302417002,8.6189,163.16,163.11,16.78468397]
[1752302417208,0.69,163.15,163.12,39.84433488]
[1752302417505,0.69,163.15,163.12,30.92]
[1752302417708,0.69,163.15,163.12,39.84433488]
[1752302419520,0.69,163.15,163.13,8.92433488]
[1752302419726,0.69,163.15,163.14,30.9]
[1752302423335,0.69,163.15,163.14,39.82433488]
[1752302424518,0.69,163.15,163.14,30.9]
[1752302426703,0.69,163.17,163.14,39.82433488]
[1752302426901,0.69,163.16,163.15,8.92433488]
[1752302427809,0.79,163.18,163.15,8.92433488]
[1752302428022,0.69,163.17,163.16,39.84433488]
[1752302428843,0.69,163.17,163.16,30.92]
[1752302429134,9.61433488,163.17,163.16,30.92]
[1752302429331,8.92433488,163.17,163.16,30.92]
[1752302429629,9.61433488,163.17,163.16,30.92]
[1752302429835,9.61433488,163.17,163.15,30.92]
[1752302430047,0.69,163.16,163.15,30.92]
[1752302439252,0.69,163.16,163.13,26.0]
[1752302439443,9.61433488,163.16,163.14,30.92]
[1752302439647,0.69,163.15,163.14,30.92]
[1752302442652,0.72,163.17,163.14,30.92]
[1752302444840,0.03,163.17,163.14,30.92]
[1752302445235,0.69,163.17,163.14,39.84433488]
[1752302445434,0.66,163.16,163.14,39.84433488]
[1752302446549,0.66,163.16,163.14,30.92]
[1752302448340,0.66,163.15,163.13,26.0]
[1752302448538,0.66,163.15,163.14,30.9]
[1752302448931,0.66,163.16,163.14,30.9]
[1752302449753,0.66,163.15,163.14,30.9]
[1752302450157,0.66,163.15,163.13,34.92433488]
[1752302450350,0.66,163.15,163.14,30.9]
[1752302450654,8.95433488,163.17,163.14,30.9]
[1752302451161,9.58433488,163.16,163.14,30.9]
[1752302451353,0.66,163.15,163.14,30.9]
[1752302457461,0.69,163.16,163.14,30.9]
[1752302461066,0.66,163.15,163.14,30.9]
[1752302461241,0.03,163.16,163.14,30.9]
[1752302461441,0.69,163.16,163.14,30.9]
[1752302461770,0.03,163.16,163.14,39.82433488]
[1752302462149,0.66,163.15,163.14,30.9]
[1752302462543,0.03,163.16,163.14,30.9]
[1752302462849,0.69,163.16,163.14,30.9]
[1752302467278,9.61433488,163.16,163.15,30.88]
[1752302467579,0.69,163.16,163.14,30.88]
[1752302467750,0.69,163.16,163.15,30.88]
[1752302476170,0.03,163.16,163.15,30.88]
[1752302476370,0.75,163.16,163.15,30.88]
[1752302479178,0.03,163.16,163.15,30.88]
[1752302479965,0.75,163.16,163.15,30.88]
[1752302480476,0.03,163.16,163.15,30.88]
[1752302481872,0.75,163.16,163.15,30.88]
[1752302482288,0.03,163.16,163.15,30.88]
[1752302483284,0.75,163.16,163.15,30.88]
[1752302485886,9.67433488,163.16,163.15,30.88]
[1752302486387,9.67433488,163.16,163.13,30.88]
[1752302486590,9.64433488,163.15,163.13,30.88]
[1752302486771,8.92433488,163.15,163.13,30.88]
[1752302487087,0.72,163.14,163.13,30.88]
[1752302487302,0.72,163.14,163.07,7.71024909]
[1752302487303,9.64433488,163.14,163.08,16.78468397]
[1752302487473,1.5687,163.15,163.09,30.88]
[1752302487474,8.92433488,163.12,163.09,30.88]
[1752302487667,9.64433488,163.12,163.09,30.88]
[1752302489383,0.72,163.11,163.09,30.88]
[1752302489997,0.72,163.1,163.09,30.88]
[1752302491570,0.72,163.11,163.09,30.88]
[1752302491776,9.64433488,163.11,163.09,30.88]
[1752302492291,0.72,163.13,163.09,30.88]
[1752302492482,9.64433488,163.14,163.1,0.67]
[1752302492680,9.64433488,163.14,163.11,30.88]
[1752302493883,1.5687,163.15,163.11,30.88]
[1752302494086,0.03,163.16,163.13,8.92433488]
[1752302494294,0.75,163.16,163.14,30.9]
[1752302495187,0.03,163.16,163.14,30.9]
[1752302495395,9.64433488,163.15,163.14,30.9]
[1752302495692,9.64433488,163.15,163.12,30.9]
[1752302495894,9.64433488,163.14,163.12,30.9]
[1752302496098,0.72,163.13,163.12,30.9]
[1752302496291,9.64433488,163.14,163.12,30.9]
[1752302496491,0.72,163.13,163.12,30.9]
[1752302497600,9.64433488,163.15,163.12,30.9]
[1752302500607,8.95433488,163.16,163.12,31.57]
[1752302500804,0.75,163.16,163.12,31.57]
[1752302500978,9.67433488,163.16,163.12,31.57]
[1752302501382,0.03,163.16,163.13,9.59433488]
[1752302501679,0.03,163.16,163.14,30.9]
[1752302502796,0.03,163.16,163.14,31.57]
[1752302506108,0.03,163.16,163.14,40.49433488]
[1752302509911,0.03,163.16,163.14,31.57]
[1752302510104,0.03,163.16,163.14,40.49433488]
[1752302511287,0.03,163.16,163.14,30.9]
[1752302512914,0.73,163.16,163.14,30.9]
[1752302514423,9.65433488,163.16,163.14,30.9]
[1752302514719,0.7,163.15,163.14,30.9]
[1752302515424,0.7,163.15,163.12,8.92433488]
[1752302515724,0.7,163.15,163.14,30.88]
[1752302515921,0.7,163.15,163.11,9.61433488]
[1752302516103,9.62433488,163.15,163.13,30.88]
[1752302516423,0.7,163.14,163.13,30.88]
[1752302520822,8.92433488,163.15,163.13,30.88]
[1752302521026,9.62433488,163.15,163.13,30.88]
[1752302522306,0.7,163.14,163.13,30.88]
[1752302526436,9.65433488,163.16,163.13,30.88]
[1752302526637,0.7,163.15,163.13,30.88]
[1752302530840,0.03,163.16,163.13,31.57]
[1752302531138,9.65433488,163.16,163.13,30.88]
[1752302532011,9.65433488,163.16,163.13,31.57]
[1752302533533,0.73,163.16,163.13,31.57]
[1752302533830,0.7,163.15,163.13,30.88]
[1752302534014,9.64433488,163.16,163.13,31.57]
[1752302536305,9.61433488,163.15,163.13,30.88]
[1752302536511,9.61433488,163.14,163.13,30.88]
[1752302536919,9.61433488,163.14,163.11,56.94]
[1752302537414,9.61433488,163.14,163.11,57.63]
[1752302537617,0.69,163.14,163.11,57.63]
[1752302538422,8.92433488,163.14,163.11,56.94]
[1752302538622,9.61433488,163.14,163.11,57.63]
[1752302539138,8.92433488,163.14,163.11,57.63]
[1752302540532,9.61433488,163.15,163.12,0.69]
[1752302540938,0.69,163.15,163.13,30.96]
[1752302541141,9.61433488,163.15,163.13,30.96]
[1752302541938,0.72,163.16,163.13,31.65]
[1752302542131,9.64433488,163.16,163.13,31.65]
[1752302542331,0.72,163.16,163.13,31.65]
[1752302542540,9.64433488,163.16,163.13,31.65]
[1752302546151,9.64433488,163.16,163.13,30.96]
[1752302547950,0.72,163.16,163.13,30.96]
[1752302548132,9.64433488,163.16,163.13,30.96]
[1752302549548,0.72,163.16,163.13,31.65]
[1752302549849,9.64433488,163.16,163.13,31.65]
[1752302550348,8.95433488,163.16,163.14,0.69]
[1752302550852,0.03,163.16,163.15,30.94]
[1752302552041,0.72,163.16,163.15,30.94]
[1752302552239,9.64433488,163.16,163.15,30.94]
[1752302560957,8.95433488,163.16,163.15,30.94]
[1752302563255,0.03,163.16,163.15,31.63]
[1752302563636,0.03,163.16,163.15,40.55433488]
[1752302564367,0.03,163.16,163.15,31.63]
[1752302566036,0.03,163.16,163.15,30.94]
[1752302566760,9.61433488,163.16,163.15,30.92]
[1752302567857,8.95433488,163.16,163.15,30.92]
[1752302568564,0.03,163.16,163.15,30.92]
[1752302568750,8.95433488,163.16,163.15,30.92]
[1752302569463,0.03,163.16,163.15,30.92]
[1752302570666,0.03,163.16,163.15,31.6]
[1752302574968,0.03,163.16,163.15,48.38468397]
[1752302575193,0.03,163.16,163.15,31.6]
[1752302575872,0.03,163.16,163.15,30.92]
[1752302579550,0.03,163.16,163.15,31.6]
[1752302580360,0.03,163.16,163.15,40.52433488]
[1752302581273,0.03,163.16,163.15,31.6]
[1752302581483,0.03,163.16,163.15,40.52433488]
[1752302581869,0.03,163.16,163.15,31.6]
[1752302584382,0.03,163.16,163.15,32.1]
[1752302587979,0.03,163.16,163.15,31.42]
[1752302590078,0.03,163.16,163.15,32.1]
[1752302600196,0.03,163.16,163.15,31.42]
[1752302603809,0.03,163.16,163.15,32.14]
[1752302605004,0.03,163.16,163.15,41.06433488]
[1752302605266,0.03,163.16,163.15,32.14]
[1752302605387,0.03,163.16,163.15,41.06433488]
[1752302605988,0.03,163.16,163.15,57.84901885]
[1752302606289,0.03,163.16,163.15,48.20468397]
[1752302607100,0.03,163.16,163.15,48.92468397]
[1752302607302,0.03,163.16,163.15,57.84901885]
[1752302609412,0.03,163.16,163.15,48.20468397]
[1752302612614,0.03,163.16,163.15,48.92468397]
[1752302613309,0.03,163.16,163.15,48.20468397]
[1752302613508,9.66433488,163.16,163.15,0.5]
[1752302613710,9.66433488,163.16,163.12,89.1]
[1752302613902,8.92433488,163.14,163.13,31.06]
[1752302614312,9.63433488,163.14,163.13,31.06]
[1752302619215,9.63433488,163.14,163.09,26.0]
[1752302619417,8.92433488,163.11,163.07,26.72]
[1752302619609,0.71,163.1,163.08,47.84468397]
[1752302619809,0.71,163.1,163.08,31.06]
[1752302619810,8.92433488,163.09,163.08,31.06]
[1752302620016,9.63433488,163.09,163.08,31.06]
[1752302623424,0.71,163.09,163.08,31.06]
[1752302623813,9.63433488,163.09,163.08,31.06]
[1752302625319,0.72,163.11,163.08,31.06]
[1752302625526,9.64433488,163.11,163.08,31.06]
[1752302626104,0.72,163.1,163.08,31.06]
[1752302627520,9.64433488,163.1,163.08,31.06]
[1752302627824,9.64433488,163.09,163.08,31.06]
[1752302629518,0.72,163.12,163.08,31.06]
[1752302629707,8.92433488,163.11,163.08,31.77]
[1752302630028,9.64433488,163.11,163.08,31.77]
[1752302630237,0.72,163.11,163.08,31.77]
[1752302630930,9.64433488,163.11,163.08,31.06]
[1752302631119,0.72,163.1,163.08,31.06]
[1752302634333,8.3986,163.14,163.09,9.63433488]
[1752302634525,8.3986,163.14,163.1,40.67433488]
[1752302635210,2.2575,163.14,163.1,40.67433488]
[1752302636538,0.72,163.14,163.1,40.67433488]
[1752302636834,0.72,163.14,163.1,39.96433488]
[1752302637039,0.72,163.14,163.11,0.71]
[1752302637339,0.72,163.14,163.12,31.04]
[1752302637806,9.64433488,163.15,163.12,31.04]
[1752302638836,0.72,163.14,163.12,31.04]
[1752302639137,9.64433488,163.14,163.12,31.04]
[1752302639338,0.72,163.13,163.12,31.04]
[1752302641040,9.64433488,163.13,163.12,31.04]
[1752302642419,0.72,163.13,163.12,31.04]
[1752302642614,9.64433488,163.13,163.12,31.04]
[1752302646331,0.72,163.13,163.12,31.04]
[1752302646518,9.64433488,163.13,163.12,31.04]
[1752302646725,8.92433488,163.13,163.1,0.71]
[1752302646939,8.92433488,163.13,163.12,31.02]
[1752302648145,8.95433488,163.13,163.12,31.02]
[1752302648532,9.67433488,163.13,163.12,31.02]
[1752302648841,9.67433488,163.13,163.11,31.02]
[1752302649023,8.92433488,163.12,163.11,31.02]
[1752302649221,9.64433488,163.12,163.11,31.02]
[1752302661365,0.72,163.12,163.11,31.02]
[1752302661652,9.64433488,163.12,163.11,31.02]
[1752302665750,9.64433488,163.12,163.08,30.96]
[1752302666050,8.92433488,163.09,163.05,26.0]
[1752302666243,9.58433488,163.08,163.07,30.96]
[1752302666954,8.92433488,163.08,163.06,30.96]
[1752302667143,0.66,163.1,163.06,30.96]
[1752302667144,8.92433488,163.1,163.07,0.65]
[1752302667341,9.58433488,163.1,163.07,0.65]
[1752302667765,0.66,163.1,163.06,31.61]
[1752302667939,9.58433488,163.09,163.06,31.61]
[1752302668456,8.92433488,163.08,163.06,30.96]
[1752302670957,8.92433488,163.08,163.06,31.61]
[1752302671263,0.66,163.09,163.06,31.61]
[1752302671264,9.58433488,163.09,163.06,31.61]
[1752302671442,9.58433488,163.11,163.07,0.65]
[1752302671842,8.92433488,163.11,163.07,0.65]
[1752302672059,9.61433488,163.12,163.07,9.57433488]
[1752302672263,0.03,163.12,163.08,9.57433488]
[1752302672450,0.03,163.12,163.09,31.61]
[1752302673566,0.03,163.12,163.1,9.57433488]